bitfinex/quotes_SOLUSD_20250507
["timestamp","ask_amount","ask_price","bid_price","bid_amount"]
[1746588543596,4.99868314,146.12,146.05,23.96439574]
[1746588544595,152.18531488,146.13,146.05,23.96439574]
[1746588545495,14.48531488,146.12,146.05,23.96439574]
[1746588545675,137.7,146.13,146.06,0.14216157]
[1746588545878,152.18531488,146.13,146.07,26.0]
[1746588546081,14.48531488,146.14,146.08,0.14216157]
[1746588546385,6.1374,146.16,146.08,0.14216157]
[1746588546386,14.48531488,146.15,146.08,33.02216157]
[1746588546581,14.48531488,146.14,146.09,23.9578342]
[1746588547900,6.1374,146.16,146.09,23.9578342]
[1746588548198,14.48531488,146.15,146.09,23.9578342]
[1746588549402,6.1374,146.16,146.09,23.9578342]
[1746588549575,14.48531488,146.15,146.09,23.9578342]
[1746588549776,14.48531488,146.16,146.09,23.9578342]
[1746588549996,14.48531488,146.16,146.1,0.14216157]
[1746588551801,14.48531488,146.16,146.11,23.95455478]
[1746588553801,14.48531488,146.16,146.1,0.14216157]
[1746588555006,14.48531488,146.16,146.11,6.84415851]
[1746588555919,137.7,146.17,146.11,6.84415851]
[1746588556089,14.48531488,146.16,146.11,23.95455478]
[1746588556529,137.7,146.17,146.11,23.95455478]
[1746588556691,14.48531488,146.16,146.11,23.95455478]
[1746588557808,5.01284515,146.15,146.11,23.95455478]
[1746588559211,14.48531488,146.16,146.11,23.95455478]
[1746588559593,1.5293,146.18,146.11,23.95455478]
[1746588559911,39.44525581,146.2,146.11,40.39455478]
[1746588559912,14.48531488,146.17,146.11,40.39455478]
[1746588560105,19.50254978,146.17,146.11,40.39455478]
[1746588560794,5.0172349,146.16,146.11,40.39455478]
[1746588561314,19.50254978,146.16,146.11,40.39455478]
[1746588561815,5.0172349,146.15,146.11,40.39455478]
[1746588563017,5.0172349,146.14,146.11,40.39455478]
[1746588563622,14.48531488,146.16,146.11,40.39455478]
[1746588569434,14.48531488,146.17,146.11,40.39455478]
[1746588569601,5.02296935,146.16,146.11,40.39455478]
[1746588570425,14.48531488,146.17,146.11,40.39455478]
[1746588570722,14.48531488,146.16,146.11,40.39455478]
[1746588571620,5.02230071,146.15,146.11,40.39455478]
[1746588572624,14.48531488,146.16,146.11,40.39455478]
[1746588573907,5.02164472,146.15,146.11,40.39455478]
[1746588574521,14.48531488,146.16,146.11,40.39455478]
[1746588576233,5.02250839,146.15,146.11,40.39455478]
[1746588577123,5.02250839,146.14,146.11,40.39455478]
[1746588577929,14.48531488,146.16,146.11,40.39455478]
[1746588578630,5.02400357,146.15,146.11,40.39455478]
[1746588578923,5.02400357,146.15,146.11,23.95455478]
[1746588579535,5.02400357,146.14,146.11,17.11039627]
[1746588580825,14.48531488,146.17,146.11,17.11039627]
[1746588581804,5.02638796,146.16,146.11,17.11039627]
[1746588582215,5.02638796,146.16,146.12,0.14216157]
[1746588582429,137.7,146.19,146.12,0.14216157]
[1746588582818,47.09051488,146.2,146.12,20.32261043]
[1746588583020,14.48531488,146.19,146.12,20.32261043]
[1746588583329,19.51265934,146.19,146.12,20.32261043]
[1746588583514,5.02734446,146.19,146.12,20.32261043]
[1746588583705,5.02734446,146.19,146.13,23.95127625]
[1746588583921,5.02734446,146.19,146.13,40.37127625]
[1746588584343,5.02734446,146.18,146.13,40.37127625]
[1746588585049,5.02734446,146.18,146.13,66.37127625]
[1746588585234,14.48531488,146.21,146.13,66.37127625]
[1746588585410,14.48531488,146.2,146.13,66.37127625]
[1746588585726,146.10451403,146.22,146.14,16.42]
[1746588585928,14.48531488,146.2,146.14,16.42]
[1746588586132,5.02795875,146.19,146.14,16.42]
[1746588586835,5.02795875,146.18,146.15,6.84228532]
[1746588587535,5.02795875,146.18,146.15,23.94799862]
[1746588588111,14.48531488,146.2,146.15,23.94799862]
[1746588589009,5.03049045,146.19,146.15,23.94799862]
[1746588590026,19.51580533,146.19,146.15,6.84228532]
[1746588590217,19.51580533,146.18,146.15,6.84228532]
[1746588591542,5.03049045,146.17,146.14,6.84275352]
[1746588592536,14.48531488,146.19,146.14,6.84275352]
[1746588592537,5.03049045,146.16,146.14,6.84275352]
[1746588593643,14.48531488,146.19,146.14,6.84275352]
[1746588593842,14.48531488,146.19,146.14,23.94963733]
[1746588594548,5.03244316,146.18,146.14,23.94963733]
[1746588595618,137.7,146.2,146.14,23.94963733]
[1746588596447,5.0314951,146.19,146.14,23.94963733]
[1746588597754,5.0314951,146.18,146.14,23.94963733]
[1746588599044,14.48531488,146.19,146.14,23.94963733]
[1746588600640,137.7,146.2,146.14,23.94963733]
[1746588600815,5.03051317,146.18,146.14,23.94963733]
[1746588601912,137.7,146.2,146.14,23.94963733]
[1746588602249,152.18531488,146.2,146.14,23.94963733]
[1746588603132,5.03024956,146.19,146.14,23.94963733]
[1746588603852,5.03024956,146.18,146.14,23.94963733]
[1746588604652,14.48531488,146.19,146.14,23.94963733]
[1746588604828,14.48531488,146.18,146.14,6.84275352]
[1746588605147,14.48531488,146.17,146.14,6.84275352]
[1746588605733,5.02812445,146.16,146.14,6.84275352]
[1746588606831,14.48531488,146.21,146.14,23.94963733]
[1746588608336,1.5655,146.22,146.14,23.94963733]
[1746588608536,14.48531488,146.21,146.14,23.94963733]
[1746588610552,1.5655,146.22,146.14,23.94963733]
[1746588610767,143.7844,146.23,146.15,16.54216157]
[1746588610930,5.02789453,146.21,146.15,16.54216157]
[1746588611246,14.48531488,146.2,146.16,23.94636014]
[1746588611858,5.02789453,146.19,146.16,23.94636014]
[1746588612557,19.51320941,146.19,146.16,23.94636014]
[1746588613055,14.48531488,146.19,146.16,23.94636014]
[1746588613253,14.48531488,146.19,146.16,6.84181718]
[1746588613448,14.48531488,146.17,146.14,6.84242262]
[1746588613640,14.48531488,146.16,146.14,6.84242262]
[1746588613950,144.53998428,146.2,146.14,6.84242262]
[1746588614151,14.48531488,146.17,146.14,6.84242262]
[1746588614657,14.48531488,146.18,146.14,6.84242262]
[1746588615161,5.02767537,146.17,146.14,6.84242262]
[1746588615334,5.02767537,146.17,146.14,23.94930643]
[1746588615747,5.02767537,146.17,146.14,49.94930643]
[1746588616154,14.48531488,146.21,146.14,49.94930643]
[1746588616332,14.48531488,146.2,146.14,49.94930643]
[1746588616532,143.7844,146.23,146.14,49.94930643]
[1746588616862,143.7844,146.23,146.14,51.58240643]
[1746588617038,14.48531488,146.21,146.14,51.58240643]
[1746588617355,14.48531488,146.2,146.14,51.58240643]
[1746588618568,5.02859085,146.19,146.14,51.58240643]
[1746588619867,14.48531488,146.19,146.14,49.94930643]
[1746588621464,14.48531488,146.2,146.14,49.94930643]
[1746588621948,5.03131192,146.19,146.14,49.94930643]
[1746588623242,14.48531488,146.2,146.14,49.94930643]
[1746588623441,165.1083521,146.23,146.14,49.94930643]
[1746588623442,14.48531488,146.19,146.14,49.94930643]
[1746588624364,5.03402484,146.18,146.14,49.94930643]
[1746588625865,143.7844,146.23,146.14,84.16307405]
[1746588626065,14.48531488,146.21,146.14,84.16307405]
[1746588626361,143.7844,146.23,146.14,84.16307405]
[1746588626663,14.48531488,146.22,146.14,84.16307405]
[1746588626861,158.26971488,146.23,146.14,84.16307405]
[1746588627161,5.036605,146.21,146.14,84.16307405]
[1746588628374,143.7844,146.23,146.14,84.16307405]
[1746588628978,14.48531488,146.22,146.14,84.16307405]
[1746588630665,14.48531488,146.21,146.14,84.16307405]
[1746588632076,14.48531488,146.2,146.14,84.16307405]
[1746588632449,14.48531488,146.21,146.14,84.16307405]
[1746588633175,143.7844,146.23,146.14,84.16307405]
[1746588633477,14.48531488,146.22,146.14,84.16307405]
[1746588633886,152.18531488,146.23,146.14,84.16307405]
[1746588634190,14.48531488,146.22,146.14,84.16307405]
[1746588635895,14.48531488,146.21,146.15,16.4]
[1746588636688,14.48531488,146.21,146.16,23.94636014]
[1746588637290,14.48531488,146.2,146.16,23.94636014]
[1746588637492,14.48531488,146.19,146.16,23.94636014]
[1746588637805,14.48531488,146.2,146.16,23.94636014]
[1746588637997,14.48531488,146.22,146.16,23.94636014]
[1746588640396,137.7,146.23,146.16,59.78034607]
[1746588640586,7.8234,146.25,146.16,59.78034607]
[1746588640769,22.30871488,146.25,146.17,18.79181043]
[1746588640963,5.03523908,146.24,146.18,16.38]
[1746588641467,19.52055396,146.24,146.18,16.38]
[1746588641882,5.03523908,146.23,146.18,16.38]
[1746588642771,5.03523908,146.23,146.19,23.94144606]
[1746588643094,5.03523908,146.23,146.2,42.4]
[1746588643269,152.18531488,146.27,146.2,42.4]
[1746588643600,14.48531488,146.26,146.2,42.4]
[1746588643969,14.48531488,146.25,146.2,16.4]
[1746588644277,14.48531488,146.24,146.2,16.4]
[1746588644799,144.53697889,146.27,146.21,6.83947746]
[1746588644996,14.48531488,146.24,146.21,6.83947746]
[1746588646893,14.48531488,146.23,146.21,6.83947746]
[1746588647273,14.48531488,146.24,146.21,6.83947746]
[1746588649497,144.53697889,146.27,146.21,6.83947746]
[1746588649682,137.7,146.27,146.21,6.83947746]
[1746588649885,14.48531488,146.26,146.21,6.83947746]
[1746588650493,5.02342288,146.25,146.21,6.83947746]
[1746588651692,14.48531488,146.24,146.21,6.83947746]
[1746588651876,144.53671182,146.27,146.21,6.83947746]
[1746588651877,14.48531488,146.23,146.21,6.83947746]
[1746588655001,14.48531488,146.23,146.19,23.94144606]
[1746588655378,5.02263544,146.22,146.19,23.94144606]
[1746588656399,14.48531488,146.23,146.19,23.94144606]
[1746588658794,14.48531488,146.24,146.19,23.94144606]
[1746588659297,137.7,146.27,146.19,23.94144606]
[1746588659697,14.48531488,146.25,146.19,23.94144606]
[1746588660501,19.50852619,146.26,146.19,23.94144606]
[1746588660886,14.48531488,146.26,146.19,23.94144606]
[1746588661098,14.48531488,146.25,146.19,23.94144606]
[1746588661707,14.48531488,146.23,146.19,23.94144606]
[1746588662801,14.48531488,146.22,146.19,6.84041316]
[1746588664016,14.48531488,146.23,146.19,6.84041316]
[1746588665015,14.48531488,146.21,146.19,6.84041316]
[1746588666210,14.48531488,146.22,146.19,6.84041316]
[1746588667010,14.48531488,146.21,146.17,6.84134911]
[1746588670331,14.48531488,146.18,146.16,6.84179668]
[1746588670526,14.48531488,146.17,146.14,6.84275352]
[1746588670812,14.48531488,146.16,146.14,6.84275352]
[1746588671195,14.48531488,146.16,146.13,23.22310208]
[1746588672222,14.48531488,146.15,146.13,16.38]
[1746588672420,14.48531488,146.15,146.12,6.84353263]
[1746588672717,14.48531488,146.14,146.11,6.84396313]
[1746588672923,14.48531488,146.13,146.11,6.84396313]
[1746588673812,14.48531488,146.14,146.11,6.84396313]
[1746588674420,14.48531488,146.13,146.1,17.57288117]
[1746588674814,144.54219176,146.16,146.1,6.84444903]
[1746588675017,14.48531488,146.13,146.1,6.84444903]
[1746588676023,14.48531488,146.11,146.09,23.22495719]
[1746588676201,14.48531488,146.1,146.09,6.84495719]
[1746588677013,14.48531488,146.11,146.09,6.84495719]
[1746588677599,14.48531488,146.1,146.06,26.0]
[1746588677921,14.48531488,146.1,146.06,6.84650143]
[1746588678321,137.7,146.12,146.06,6.84650143]
[1746588678630,14.48531488,146.1,146.06,6.84650143]
[1746588679722,14.48531488,146.09,146.06,6.84650143]
[1746588680831,137.7,146.12,146.06,23.96275502]
[1746588681011,154.08,146.16,146.07,18.79181043]
[1746588681326,168.56531488,146.16,146.07,18.79181043]
[1746588681507,14.48531488,146.15,146.06,66.09046595]
[1746588681701,14.48531488,146.14,146.06,66.09046595]
[1746588682614,14.48531488,146.15,146.06,66.09046595]
[1746588683926,14.48531488,146.14,146.06,66.09046595]
[1746588684103,14.48531488,146.12,146.06,40.34275502]
[1746588684302,14.48531488,146.11,146.06,23.96275502]
[1746588684712,14.48531488,146.12,146.06,23.96275502]
[1746588685930,14.48531488,146.11,146.06,23.96275502]
[1746588686129,14.48531488,146.1,146.06,23.96275502]
[1746588686327,14.48531488,146.09,146.06,6.84650143]
[1746588688237,137.7,146.11,146.06,6.84650143]
[1746588688412,152.18531488,146.11,146.06,6.84650143]
[1746588689224,14.48531488,146.1,146.06,6.84650143]
[1746588689429,14.48531488,146.09,146.06,6.84650143]
[1746588689631,137.7,146.11,146.06,6.84650143]
[1746588690029,152.18531488,146.11,146.06,23.96275502]
[1746588690835,137.7,146.11,146.06,23.96275502]
[1746588691042,152.18531488,146.11,146.06,23.96275502]
[1746588691840,137.7,146.11,146.06,23.96275502]
[1746588692717,137.7,146.11,146.06,49.96275502]
[1746588693138,137.7,146.11,146.06,84.1952622]
[1746588693834,14.48531488,146.14,146.06,84.1952622]
[1746588697639,1.6297,146.15,146.06,84.1952622]
[1746588697940,14.48531488,146.15,146.09,26.0]
[1746588698638,14.48531488,146.14,146.09,26.0]
[1746588698827,14.48531488,146.15,146.09,42.38]
[1746588699359,14.48531488,146.15,146.1,6.84462696]
[1746588700639,14.48531488,146.15,146.1,23.95619437]
[1746588700824,14.48531488,146.18,146.1,23.95619437]
[1746588701024,15.98631488,146.19,146.1,23.95619437]
[1746588701224,14.48531488,146.19,146.11,18.79181043]
[1746588701447,14.48531488,146.19,146.12,23.9529154]
[1746588701635,169.762,146.21,146.12,23.9529154]
[1746588701636,143.762,146.21,146.13,16.38]
[1746588701841,1.5316,146.23,146.13,16.38]
[1746588701842,14.48531488,146.22,146.15,26.0]
[1746588702143,14.48531488,146.23,146.15,27.519]
[1746588702933,14.48531488,146.22,146.15,27.519]
[1746588703754,14.48531488,146.22,146.16,23.94636014]
[1746588705544,150.59972836,146.25,146.16,23.94636014]
[1746588705748,14.48531488,146.22,146.16,23.94636014]
[1746588706258,142.69280374,146.24,146.16,23.94636014]
[1746588706427,14.48531488,146.23,146.16,23.94636014]
[1746588709466,137.7,146.24,146.16,23.94636014]
[1746588709744,14.48531488,146.23,146.16,23.94636014]
[1746588711258,137.7,146.24,146.16,23.94636014]
[1746588711464,152.18531488,146.24,146.16,23.94636014]
[1746588712364,14.48531488,146.23,146.16,23.94636014]
[1746588712565,14.48531488,146.22,146.16,23.94636014]
[1746588712877,14.48531488,146.19,146.16,6.84181718]
[1746588713235,14.48531488,146.2,146.15,6.84228532]
[1746588713438,14.48531488,146.2,146.15,23.94799862]
[1746588715361,137.7,146.23,146.15,23.94799862]
[1746588715743,152.18531488,146.23,146.15,23.94799862]
[1746588716463,152.18531488,146.23,146.16,44.79181043]
[1746588716960,137.7,146.23,146.16,44.79181043]
[1746588717161,152.18531488,146.23,146.16,44.79181043]
[1746588717759,160.78066319,146.23,146.17,23.94472189]
[1746588718059,23.08066319,146.22,146.17,23.94472189]
[1746588720462,23.08066319,146.22,146.17,6.84134911]
[1746588720667,23.08066319,146.21,146.17,6.84134911]
[1746588720852,23.08066319,146.22,146.17,6.84134911]
[1746588721255,160.78066319,146.23,146.17,23.94472189]
[1746588721747,137.7,146.23,146.17,23.94472189]
[1746588722275,1.5316,146.26,146.18,18.79181043]
[1746588722480,1.5316,146.26,146.2,6.83994528]
[1746588722647,24.61226319,146.26,146.2,6.83994528]
[1746588722841,23.08066319,146.26,146.2,23.19994528]
[1746588723446,6.8362979,146.28,146.2,23.19994528]
[1746588723447,23.08066319,146.27,146.2,40.29980848]
[1746588723646,150.74981211,146.29,146.2,40.29980848]
[1746588723866,23.08066319,146.27,146.2,40.29980848]
[1746588724083,23.08066319,146.26,146.2,40.29980848]
[1746588725146,23.08066319,146.25,146.2,40.29980848]
[1746588725861,144.5362603,146.28,146.2,40.29980848]
[1746588726050,160.78066319,146.28,146.2,40.29980848]
[1746588726448,137.7,146.28,146.2,40.29980848]
[1746588726649,137.7,146.28,146.21,18.79181043]
[1746588726846,160.78066319,146.28,146.2,40.29980848]
[1746588727562,23.08066319,146.25,146.2,40.29980848]
[1746588727763,23.08066319,146.24,146.2,40.29980848]
[1746588727953,23.08066319,146.25,146.2,40.29980848]
[1746588729678,144.5362296,146.28,146.2,40.29980848]
[1746588729852,23.08066319,146.25,146.2,40.29980848]
[1746588730469,23.08066319,146.26,146.2,40.29980848]
[1746588732758,23.08066319,146.25,146.2,40.29980848]
[1746588733074,23.08066319,146.24,146.2,40.29980848]
[1746588733370,23.08066319,146.25,146.2,40.29980848]
[1746588733573,144.5362296,146.28,146.2,40.29980848]
[1746588733873,23.08066319,146.25,146.2,40.29980848]
[1746588734058,6.83675319,146.27,146.2,40.29980848]
[1746588734259,23.08066319,146.25,146.2,40.29980848]
[1746588735468,23.08066319,146.25,146.2,23.19994528]
[1746588735673,23.08066319,146.24,146.2,23.19994528]
[1746588735856,23.08066319,146.24,146.2,6.83994528]
[1746588736055,23.08066319,146.22,146.19,6.84020281]
[1746588736256,23.08066319,146.22,146.18,6.84066935]
[1746588736447,23.08066319,146.2,146.18,6.84066935]
[1746588736650,23.08066319,146.19,146.17,6.8412086]
[1746588736871,23.08066319,146.2,146.17,6.8412086]
[1746588737775,23.08066319,146.2,146.16,6.84181718]
[1746588739085,23.08066319,146.21,146.16,23.94636014]
[1746588739272,137.7,146.23,146.16,23.94636014]
[1746588739674,137.7,146.23,146.19,26.0]
[1746588739860,23.08066319,146.25,146.19,42.34]
[1746588740394,137.7,146.26,146.19,42.34]
[1746588741088,137.7,146.26,146.2,23.93980848]
[1746588741580,137.7,146.26,146.2,58.13953488]
[1746588743079,32.83496359,146.31,146.23,26.0]
[1746588743080,137.7,146.3,146.23,26.0]
[1746588743377,137.7,146.3,146.24,32.7]
[1746588743580,160.78066319,146.3,146.24,32.7]
[1746588744157,137.7,146.3,146.24,32.7]
[1746588745175,137.7,146.3,146.25,23.93162392]
[1746588745366,160.78066319,146.3,146.25,23.93162392]
[1746588745567,137.7,146.3,146.25,23.93162392]
[1746588745882,160.78066319,146.3,146.25,23.93162392]
[1746588746379,137.7,146.3,146.25,23.93162392]
[1746588746578,160.78066319,146.3,146.25,23.93162392]
[1746588747285,137.7,146.3,146.25,23.93162392]
[1746588749384,24.66906319,146.33,146.26,26.0]
[1746588749760,23.08066319,146.3,146.26,26.0]
[1746588750284,23.08066319,146.29,146.26,26.0]
[1746588750483,23.08066319,146.28,146.25,6.83760683]
[1746588750780,137.7,146.32,146.25,6.83760683]
[1746588750956,23.08066319,146.28,146.25,6.83760683]
[1746588751156,23.08066319,146.28,146.24,6.83807439]
[1746588753705,23.08066319,146.29,146.24,6.83807439]
[1746588753901,137.7,146.32,146.24,23.93326038]
[1746588754216,160.78066319,146.32,146.24,23.93326038]
[1746588754700,23.08066319,146.31,146.24,23.93326038]
[1746588755198,137.7,146.32,146.24,23.93326038]
[1746588755590,160.78066319,146.32,146.24,23.93326038]
[1746588755897,160.78066319,146.32,146.28,6.83620453]
[1746588757102,23.08066319,146.32,146.28,6.83620453]
[1746588757298,23.08066319,146.33,146.28,6.83620453]
[1746588757507,5.0146182,146.32,146.28,6.83620453]
[1746588757691,28.09528139,146.32,146.28,6.83620453]
[1746588758705,23.08066319,146.32,146.28,6.83620453]
[1746588760001,23.08066319,146.31,146.28,6.83620453]
[1746588760298,23.08066319,146.3,146.27,6.83652856]
[1746588760491,137.7,146.32,146.26,6.83696728]
[1746588760700,23.08066319,146.3,146.26,6.83696728]
[1746588761487,137.7,146.32,146.25,6.83760683]
[1746588761687,23.08066319,146.3,146.25,6.83760683]
[1746588764015,23.08066319,146.31,146.25,6.83760683]
[1746588764610,137.7,146.32,146.25,6.83760683]
[1746588764809,160.78066319,146.32,146.25,6.83760683]
[1746588765008,28.098818,146.31,146.25,6.83760683]
[1746588765615,5.01815481,146.31,146.25,23.93162392]
[1746588765912,23.08066319,146.31,146.25,23.93162392]
[1746588766408,160.78066319,146.32,146.25,23.93162392]
[1746588766715,23.08066319,146.3,146.25,23.93162392]
[1746588767014,23.08066319,146.31,146.25,23.93162392]
[1746588767901,137.7,146.32,146.25,23.93162392]
[1746588767902,23.08066319,146.29,146.25,6.83760683]
[1746588768210,23.08066319,146.28,146.25,6.83760683]
[1746588768719,23.08066319,146.28,146.24,6.83793977]
[1746588769719,14.41643095,146.28,146.24,6.83793977]
[1746588771721,23.07071822,146.26,146.23,6.8383991]
[1746588774127,23.07071822,146.25,146.22,32.83882541]
[1746588776731,23.07071822,146.25,146.22,6.83882541]
[1746588780406,160.77071822,146.26,146.22,6.83882541]
[1746588782639,137.7,146.25,146.21,23.17931475]
[1746588782812,23.07071822,146.24,146.21,23.17931475]
[1746588783006,23.07071822,146.24,146.21,16.34]
[1746588783510,160.77071822,146.25,146.21,16.34]
[1746588784734,137.7,146.25,146.21,23.17944636]
[1746588785237,137.7,146.29,146.21,40.27814001]
[1746588785442,160.77071822,146.29,146.21,40.27814001]
[1746588786128,23.07071822,146.28,146.21,40.27814001]
[1746588788351,137.7,146.29,146.21,40.27814001]
[1746588788516,160.77071822,146.29,146.21,40.27814001]
[1746588789028,23.07071822,146.28,146.21,40.27814001]
[1746588789325,28.09397193,146.28,146.21,40.27814001]
[1746588789843,23.07071822,146.28,146.21,40.27814001]
[1746588790841,23.07071822,146.25,146.21,23.93814001]
[1746588791045,23.07071822,146.25,146.21,6.83944636]
[1746588792622,5.02291729,146.24,146.21,6.83944636]
[1746588793825,137.7,146.28,146.21,6.83944636]
[1746588793826,152.1142316,146.28,146.21,6.83944636]
[1746588794518,5.02250737,146.27,146.21,6.83944636]
[1746588794841,5.02250737,146.27,146.21,23.93814001]
[1746588795750,5.02250737,146.26,146.21,23.93814001]
[1746588796649,152.1142316,146.28,146.21,23.93814001]
[1746588797934,5.02279361,146.27,146.21,23.93814001]
[1746588798738,5.02279361,146.27,146.21,64.52712732]
[1746588799131,158.5042316,146.31,146.22,18.79181043]
[1746588799545,144.09,146.31,146.22,18.79181043]
[1746588799733,137.7,146.31,146.26,23.92998769]
[1746588804254,137.7,146.34,146.26,23.92998769]
[1746588804453,152.1142316,146.34,146.26,23.92998769]
[1746588806256,137.7,146.34,146.26,23.92998769]
[1746588806555,14.4142316,146.33,146.26,23.92998769]
[1746588807262,137.7,146.34,146.26,23.92998769]
[1746588807557,6.0001,146.37,146.29,26.0]
[1746588807731,14.4142316,146.36,146.29,26.0]
[1746588808153,14.4142316,146.36,146.3,16.32]
[1746588808848,20.4143316,146.37,146.3,16.32]
[1746588809239,14.4142316,146.36,146.3,16.32]
[1746588809638,14.4142316,146.36,146.31,6.83480281]
[1746588810954,14.4142316,146.37,146.31,23.92180984]
[1746588811149,152.1142316,146.38,146.31,23.92180984]
[1746588813147,14.4142316,146.37,146.31,23.92180984]
[1746588813456,137.7,146.38,146.31,23.92180984]
[1746588813664,152.1142316,146.38,146.31,23.92180984]
[1746588814259,137.7,146.38,146.31,23.92180984]
[1746588814478,152.1142316,146.38,146.31,23.92180984]
[1746588815170,137.7,146.38,146.31,23.92180984]
[1746588816568,137.7,146.41,146.34,26.0]
[1746588816770,137.7,146.41,146.35,32.64]
[1746588816945,137.7,146.41,146.36,23.91363759]
[1746588818158,145.3998,146.45,146.36,23.91363759]
[1746588818672,14.4142316,146.43,146.36,23.91363759]
[1746588819947,145.3998,146.45,146.36,23.91363759]
[1746588820272,14.4142316,146.43,146.36,23.91363759]
[1746588820772,152.22808175,146.45,146.36,23.91363759]
[1746588820971,14.4142316,146.43,146.36,23.91363759]
[1746588821360,152.22808175,146.45,146.36,23.91363759]
[1746588821563,14.4142316,146.44,146.36,23.91363759]
[1746588821870,14.4142316,146.43,146.36,23.91363759]
[1746588822977,14.4142316,146.44,146.36,23.91363759]
[1746588825373,14.4142316,146.44,146.37,26.0]
[1746588825561,159.8140316,146.45,146.37,26.0]
[1746588826059,137.7,146.45,146.39,26.0]
[1746588826259,154.5981793,146.48,146.4,16.3]
[1746588826561,154.5981793,146.48,146.4,32.62]
[1746588826750,14.4142316,146.47,146.4,32.62]
[1746588827153,14.4142316,146.47,146.41,6.83013455]
[1746588827351,154.5981793,146.48,146.41,6.83013455]
[1746588827672,154.5981793,146.48,146.41,23.90547093]
[1746588828575,140.07206078,146.48,146.41,23.90547093]
[1746588828781,14.4142316,146.46,146.41,23.90547093]
[1746588829377,14.4142316,146.46,146.41,6.83013455]
[1746588829580,14.4142316,146.45,146.41,6.83013455]
[1746588829784,14.4142316,146.46,146.41,6.83013455]
[1746588830170,14.4142316,146.47,146.41,6.83013455]
[1746588831354,146.89913005,146.48,146.41,6.83013455]
[1746588831560,152.1142316,146.47,146.41,6.83013455]
[1746588831759,152.1142316,146.47,146.41,23.90547093]
[1746588831760,137.7,146.47,146.41,23.90547093]
[1746588832670,0.86006078,146.48,146.45,26.0]
[1746588832873,0.86006078,146.48,146.46,32.62]
[1746588833476,0.86006078,146.48,146.47,6.82733665]
[1746588833878,0.86006078,146.48,146.47,32.82733665]
[1746588835264,0.86006078,146.48,146.47,51.61914708]
[1746588835483,0.86006078,146.48,146.47,51.47698551]
[1746588835681,0.86006078,146.48,146.47,59.40494708]
[1746588836484,0.86006078,146.48,146.47,34.38773665]
[1746588839983,0.14216157,146.54,146.47,6.82733665]
[1746588840184,14.4142316,146.5,146.47,23.12733665]
[1746588840394,14.4142316,146.51,146.47,23.12733665]
[1746588840994,14.4142316,146.51,146.47,6.82733665]
[1746588841290,14.55639317,146.52,146.47,6.82733665]
[1746588841677,14.55639317,146.52,146.45,6.82826903]
[1746588841870,14.55639317,146.52,146.45,23.12826903]
[1746588842067,14.4142316,146.51,146.45,6.82826903]
[1746588842261,14.4142316,146.5,146.45,6.82826903]
[1746588842465,14.4142316,146.49,146.45,6.82826903]
[1746588842669,14.4142316,146.47,146.42,16.3]
[1746588842892,137.7,146.48,146.42,6.82966807]
[1746588842893,152.1142316,146.48,146.42,6.82966807]
[1746588843193,137.7,146.48,146.42,23.90383826]
[1746588855580,152.1142316,146.48,146.42,6.82966807]
[1746588855893,14.4142316,146.46,146.42,6.82966807]
[1746588856272,14.4142316,146.45,146.41,32.82994624]
[1746588856491,14.4142316,146.45,146.41,6.82994624]
[1746588856793,14.4142316,146.45,146.4,6.83060109]
[1746588857493,22.83776548,146.46,146.4,6.83060109]
[1746588858797,14.4142316,146.45,146.4,6.83060109]
[1746588860197,14.4142316,146.44,146.39,23.13088438]
[1746588860378,14.4142316,146.42,146.39,6.83088438]
[1746588860778,20.6842316,146.43,146.37,6.83200109]
[1746588862800,5.01763091,146.42,146.37,6.83200109]
[1746588864294,6.27,146.43,146.37,6.83200109]
[1746588864895,6.27,146.43,146.37,23.91200382]
[1746588865100,137.7,146.44,146.37,23.91200382]
[1746588866605,5.01789328,146.43,146.37,23.91200382]
[1746588867076,5.01789328,146.43,146.42,6.82966807]
[1746588867475,5.01789328,146.43,146.42,21.21314776]
[1746588867679,137.7,146.44,146.42,21.21314776]
[1746588870711,6.3363,146.47,146.43,14.38347969]
[1746588870894,6.3363,146.47,146.42,23.90383826]
[1746588870895,152.08347969,146.48,146.44,14.38347969]
[1746588871297,137.7,146.48,146.45,14.38347969]
[1746588871489,137.7,146.48,146.46,14.38347969]
[1746588872393,6.2627,146.51,146.47,14.38347969]
[1746588872604,14.38347969,146.5,146.46,14.38347969]
[1746588872792,19.40506115,146.5,146.47,6.82733665]
[1746588873808,14.38347969,146.5,146.47,6.82733665]
[1746588874516,14.38347969,146.5,146.46,6.82766624]
[1746588874704,14.38347969,146.49,146.46,6.82766624]
[1746588875994,14.38347969,146.48,146.43,6.82920166]
[1746588876192,14.38347969,146.47,146.43,6.82920166]
[1746588877518,14.38347969,146.47,146.43,21.21268135]